fUSD/lending_fUSD_20250905
["ID","MTS","AMOUNT","RATE_DAILY","PERIOD"]
[383767315,1757109256364,-505.54,0.00040821,10]
[383767316,1757109256374,-400.0,0.00040821,10]
[383767317,1757109256383,-400.0,0.00040821,2]
[383767318,1757109256393,-493.62,0.00040821,10]
[383767319,1757109256402,-400.0,0.00040821,10]
[383767320,1757109256411,-556.02,0.00040821,10]
[383767321,1757109256421,-317.39,0.00040821,10]
[383767322,1757109256431,-514.72,0.00040821,10]
[383767323,1757109256440,-456.07,0.00040821,10]
[383767324,1757109256450,-1553.38,0.00040821,10]
[383767325,1757109256460,-737.77,0.00040821,10]
[383767326,1757109256469,-400.0,0.00040821,10]
[383767327,1757109256479,-521.95,0.00040821,10]
[383767328,1757109256488,-418.68,0.00040821,10]
[383767329,1757109256498,-583.81,0.00040821,10]
[383767330,1757109256507,-498.62,0.00040821,10]
[383767331,1757109256517,-430.27,0.00040821,10]
[383767332,1757109256527,-579.68,0.00040821,10]
[383767333,1757109256537,-425.45,0.00040821,10]
[383767334,1757109256547,-691.22,0.00040821,10]
[383767335,1757109256557,-601.12,0.00040821,10]
[383767336,1757109256567,-400.0,0.00040821,10]
[383767337,1757109256577,-401.24,0.00040821,10]
[383767338,1757109256586,-400.0,0.00040821,10]
[383767339,1757109256596,-1060.4,0.00040821,10]
[383767340,1757109256605,-487.13,0.00040821,10]
[383767341,1757109256615,-565.1,0.00040821,10]
[383767342,1757109256625,-400.0,0.00040821,10]
[383767343,1757109256635,-607.93,0.00040821,10]
[383767344,1757109256645,-408.11,0.00040821,10]
[383767345,1757109256655,-599.17,0.00040821,10]
[383767346,1757109256665,-643.16,0.00040821,10]
[383767347,1757109256675,-400.0,0.00040821,10]
[383767348,1757109256685,-567.22,0.00040821,10]
[383767349,1757109256695,-400.0,0.00040821,10]
[383767350,1757109256705,-400.0,0.00040821,10]
[383767351,1757109256715,-587.89,0.00040821,10]
[383767352,1757109256724,-649.4,0.00040821,10]
[383767353,1757109256734,-381.72219778,0.00040821,10]
[383767354,1757109256744,-444.03,0.00040821,10]
[383767355,1757109256754,-540.45,0.00040821,10]
[383767356,1757109256764,-521.91,0.00040821,10]
[383767357,1757109256774,-577.54,0.00040821,10]
[383767358,1757109257170,-455.87,0.00040821,10]
[383767359,1757109257221,-606.17,0.00040821,10]
[383767360,1757109257231,-400.0,0.00040821,10]
[383767361,1757109257240,-400.0,0.00040821,10]
[383767362,1757109257250,-552.86,0.00040821,10]
[383767363,1757109257260,-738.19,0.00040821,10]
[383767364,1757109257270,-400.0,0.00040821,10]
[383767365,1757109257281,-400.0,0.00040821,10]
[383767366,1757109257291,-485.13,0.00040821,10]
[383767367,1757109257300,-417.51276097,0.00040821,10]
[383767368,1757109257310,-497.92,0.00040821,10]
[383767369,1757109257319,-534.68,0.00040821,10]
[383767370,1757109257329,-434.21,0.00040821,10]
[383767371,1757109257338,-404.38921143,0.00040821,10]
[383767372,1757109257348,-400.0,0.00040821,10]
[383767373,1757109257358,-400.0,0.00040821,10]
[383767374,1757109257367,-242.99412748,0.00040821,10]
[383767375,1757109257377,-400.0,0.00040821,10]
[383767376,1757109257387,-697.19,0.00040821,10]
[383767377,1757109257398,-588.33,0.00040821,10]
[383767378,1757109257407,-467.87,0.00040821,10]
[383767379,1757109257417,-513.73,0.00040821,10]
[383767380,1757109257427,-400.0,0.00040821,10]
[383767381,1757109257436,-400.0,0.00040821,10]
[383767382,1757109257446,-192.9,0.00040821,10]
[383767383,1757109257456,-434.97,0.00040821,10]
[383767384,1757109257466,-400.0,0.00040821,10]
[383767385,1757109257475,-547.22,0.00040821,10]
[383767386,1757109257485,-400.0,0.00040821,10]
[383767387,1757109257495,-9387.3,0.00040821,10]
[383767388,1757109257504,-438.16,0.00040821,10]
[383767389,1757109257515,-400.44,0.00040821,10]
[383767390,1757109257524,-506.66,0.00040821,10]
[383767391,1757109257534,-467.62,0.00040821,10]
[383767392,1757109257544,-400.0,0.00040821,10]
[383767393,1757109257553,-173.31,0.00040821,10]
[383767394,1757109257563,-422.62,0.00040821,10]
[383767395,1757109257573,-406.5,0.00040821,10]
[383767396,1757109257582,-773.54,0.00040821,10]
[383767397,1757109257591,-392.46244646,0.00040821,10]
[383767398,1757109257601,-765.31,0.00040821,10]
[383767399,1757109257611,-401.2,0.00040821,10]
[383767400,1757109257621,-417.09,0.00040821,10]
[383767401,1757109257631,-441.78,0.00040821,10]
[383767402,1757109257640,-400.0,0.00040821,10]
[383767403,1757109257651,-553.83,0.00040821,10]
[383767404,1757109257661,-546.26,0.00040821,10]
[383767405,1757109257671,-400.0,0.00040821,10]
[383767406,1757109257681,-441.15,0.00040821,10]
[383767407,1757109257691,-785.59,0.00040821,10]
[383767408,1757109257701,-437.91,0.00040821,10]
[383767409,1757109257711,-447.37,0.00040821,10]
[383767410,1757109257720,-632.37,0.00040821,10]
[383767411,1757109257730,-414.4,0.00040821,10]
[383767412,1757109257739,-981.06,0.00040821,10]
[383767413,1757109257749,-400.0,0.00040821,10]
[383767414,1757109257758,-569.2,0.00040821,10]
[383767415,1757109257768,-542.91,0.00040821,10]
[383767416,1757109257778,-414.08,0.00040821,10]
[383767417,1757109257788,-420.85,0.00040821,10]
[383767418,1757109257797,-1444.34,0.00040821,10]
[383767419,1757109257807,-2516.87,0.00040821,10]
[383767420,1757109257817,-441.96,0.00040821,10]
[383767421,1757109257827,-487.97,0.00040821,10]
[383767422,1757109257838,-586.94,0.00040821,10]
[383767423,1757109257848,-626.89,0.00040821,10]
[383767424,1757109257858,-447.68,0.00040821,10]
[383767425,1757109257867,-2345.08,0.00040821,10]
[383767426,1757109257877,-498.12,0.00040821,10]
[383767427,1757109257886,-311.64290069,0.00040821,10]
[383767428,1757109257896,-400.0,0.00040821,10]
[383767429,1757109257906,-448.78,0.00040821,10]
[383767430,1757109257915,-400.0,0.00040821,10]
[383767431,1757109257925,-475.22,0.00040821,10]
[383767432,1757109257935,-562.67,0.00040821,10]
[383767433,1757109257944,-576.12,0.00040821,10]
[383767434,1757109257954,-459.73,0.00040821,10]
[383767435,1757109257964,-400.0,0.00040821,10]
[383767436,1757109257973,-546.92,0.00040821,10]
[383767437,1757109257983,-400.0,0.00040821,2]
[383767438,1757109257993,-543.53,0.00040821,10]
[383767439,1757109258008,-495.5,0.00040821,10]
[383767440,1757109258019,-584.47,0.00040821,10]
[383767441,1757109258028,-551.73,0.00040821,10]
[383767442,1757109258038,-400.0,0.00040821,10]
[383767443,1757109258048,-445.12,0.00040821,10]
[383767444,1757109258058,-400.0,0.00040821,10]
[383767445,1757109258068,-618.31,0.00040821,10]
[383767446,1757109258077,-2141.03,0.00040821,10]
[383767447,1757109258087,-582.55,0.00040821,10]
[383767448,1757109258098,-502.39,0.00040821,10]
[383767449,1757109258108,-156.7693749,0.00040821,10]
[383767450,1757109258117,-884.72,0.00040821,10]
[383767451,1757109258127,-494.68,0.00040821,10]
[383767452,1757109258137,-492.2,0.00040821,10]
[383767453,1757109258146,-590.75,0.00040821,10]
[383767454,1757109258156,-434.34,0.00040821,10]
[383767455,1757109258166,-400.0,0.00040821,10]
[383767456,1757109258176,-423.04,0.00040821,10]
[383767457,1757109258185,-400.0,0.00040821,10]
[383767458,1757109258195,-474.82,0.00040821,10]
[383767459,1757109258205,-400.0,0.00040821,10]
[383767460,1757109258215,-400.0,0.00040821,10]
[383767461,1757109258225,-510.45,0.00040821,10]
[383767462,1757109258234,-400.0,0.00040821,10]
[383767463,1757109258244,-1028.14,0.00040821,10]
[383767464,1757109258254,-2757.36,0.00040821,10]
[383767465,1757109258264,-400.0,0.00040821,10]
[383767466,1757109258274,-404.16,0.00040821,10]
[383767467,1757109258284,-701.4,0.00040821,10]
[383767468,1757109258294,-696.57,0.00040821,10]
[383767469,1757109258304,-400.0,0.00040821,10]
[383767470,1757109258314,-438.53,0.00040821,10]
[383767471,1757109258324,-766.81,0.00040821,10]
[383767472,1757109258334,-400.0,0.00040821,10]
[383767473,1757109258345,-480.98,0.00040821,10]
[383767474,1757109258355,-400.0,0.00040821,10]
[383767475,1757109258365,-425.95,0.00040821,10]
[383767476,1757109258375,-400.0,0.00040821,10]
[383767477,1757109258385,-400.0,0.00040821,10]
[383767478,1757109258395,-443.56,0.00040821,10]
[383767479,1757109258405,-400.0,0.00040821,10]
[383767480,1757109258415,-501.99,0.00040821,10]
[383767481,1757109258424,-412.56391627,0.00040821,10]
[383767482,1757109258433,-441.78,0.00040821,10]
[383767483,1757109258443,-545.84,0.00040821,10]
[383767484,1757109258453,-439.9,0.00040821,10]
[383767485,1757109258463,-545.23,0.00040821,10]
[383767486,1757109258473,-405.11,0.00040821,10]
[383767487,1757109258483,-413.96,0.00040821,10]
[383767488,1757109258492,-470.74,0.00040821,10]
[383767489,1757109258502,-400.0,0.00040821,10]
[383767490,1757109258513,-1154.65,0.00040821,10]
[383767491,1757109258522,-506.84,0.00040821,10]
[383767492,1757109258532,-3534.15,0.00040821,10]
[383767493,1757109258541,-400.0,0.00040821,10]
[383767494,1757109258551,-466.43,0.00040821,10]
[383767495,1757109258561,-552.13,0.00040821,10]
[383767496,1757109258571,-486.3,0.00040821,10]
[383767497,1757109258581,-529.91,0.00040821,10]
[383767498,1757109258590,-524.16,0.00040821,10]
[383767499,1757109258600,-400.0,0.00040821,10]
[383767500,1757109258609,-836.63,0.00040821,10]
[383767501,1757109258619,-647.19,0.00040821,10]
[383767502,1757109258629,-400.0,0.00040821,10]
[383767503,1757109258639,-531.26,0.00040821,10]
[383767504,1757109258648,-690.4,0.00040821,10]
[383767505,1757109258658,-400.0,0.00040821,10]
[383767506,1757109258667,-508.58,0.00040821,10]
[383767507,1757109258677,-424.68,0.00040821,10]
[383767508,1757109258686,-1608.94,0.00040821,10]
[383767509,1757109258696,-496.78,0.00040821,10]
[383767510,1757109258706,-450.389965,0.00040821,10]
[383767511,1757109258715,-414.05,0.00040821,10]
[383767512,1757109258725,-400.0,0.00040821,10]
[383767513,1757109258734,-400.0,0.00040821,10]
[383767514,1757109258744,-983.85,0.00040821,10]
[383767515,1757109258754,-522.3,0.00040821,10]
[383767516,1757109258764,-2782.91,0.00040821,10]
[383767517,1757109258774,-650.54,0.00040821,10]
[383767518,1757109258784,-1361.26,0.00040821,10]
[383767519,1757109258793,-436.1,0.00040821,10]
[383767520,1757109258803,-400.0,0.00040821,10]
[383767521,1757109258813,-649.0,0.00040821,10]
[383767522,1757109258823,-400.0,0.00040821,10]
[383767523,1757109258833,-474.21,0.00040821,10]
[383767524,1757109258843,-442.27,0.00040821,10]
[383767525,1757109258853,-400.0,0.00040821,10]
[383767526,1757109258862,-603.16,0.00040821,10]
[383767527,1757109258872,-407.14,0.00040821,10]
[383767528,1757109258882,-436.72,0.00040821,10]
[383767529,1757109258892,-8442.03,0.00040821,10]
[383767530,1757109258902,-621.71,0.00040821,10]
[383767531,1757109258912,-443.36,0.00040821,10]
[383767532,1757109258922,-400.0,0.00040821,10]
[383767533,1757109258932,-406.08,0.00040821,10]
[383767534,1757109258942,-400.0,0.00040821,10]
[383767535,1757109258951,-1439.09,0.00040821,10]
[383767536,1757109258960,-475.57,0.00040821,10]
[383767537,1757109258970,-2688.71,0.00040821,10]
[383767538,1757109258980,-1300.45,0.00040821,10]
[383767539,1757109258990,-400.0,0.00040821,10]
[383767540,1757109259001,-530.86,0.00040821,10]
[383767541,1757109259011,-423.37,0.00040821,10]
[383767542,1757109259021,-388.49344767,0.00040821,10]
[383767543,1757109259031,-442.37,0.00040821,10]
[383767544,1757109259040,-425.64,0.00040821,10]
[383767545,1757109259050,-400.0,0.00040821,10]
[383767546,1757109259060,-4723.5,0.00040821,10]
[383767547,1757109259069,-514.62,0.00040821,10]
[383767548,1757109259079,-446.4,0.00040821,10]
[383767549,1757109259089,-783.27,0.00040821,10]
[383767550,1757109259099,-425.55,0.00040821,10]
[383767551,1757109259108,-483.04,0.00040821,10]
[383767552,1757109259118,-440.05,0.00040821,10]
[383767553,1757109259128,-400.0,0.00040821,10]
[383767554,1757109259138,-483.3,0.00040821,10]
[383767555,1757109259148,-599.12,0.00040821,10]
[383767556,1757109259158,-677.0,0.00040821,10]
[383767557,1757109259168,-1085.17,0.00040821,10]
[383767558,1757109259177,-400.0,0.00040821,10]
[383767559,1757109259187,-3844.91,0.00040821,10]
[383767560,1757109259197,-1689.46,0.00040821,10]
[383767561,1757109259207,-421.08,0.00040821,10]
[383767562,1757109259216,-877.43,0.00040821,10]
[383767563,1757109259226,-400.0,0.00040821,10]
[383767564,1757109259235,-537.76,0.00040821,10]
[383767565,1757109259244,-436.27,0.00040821,10]
[383767566,1757109259254,-479.41,0.00040821,10]
[383767567,1757109259264,-400.0,0.00040821,10]
[383767568,1757109259273,-931.34,0.00040821,10]
[383767569,1757109259283,-401.46755092,0.00040821,10]
[383767570,1757109259292,-174.29072107,0.00040821,10]
[383767571,1757109259302,-2095.01,0.00040821,10]
[383767572,1757109259311,-229.51196228,0.00040821,10]
[383767573,1757109259321,-434.12,0.00040821,10]
[383767574,1757109259330,-1265.08,0.00040821,10]
[383767575,1757109259339,-828.12,0.00040821,10]
[383767576,1757109259349,-490.29,0.00040821,10]
[383767577,1757109259358,-407.95,0.00040821,10]
[383767578,1757109259368,-1988.71,0.00040821,10]
[383767579,1757109259377,-445.3,0.00040821,10]
[383767580,1757109259386,-400.0,0.00040821,10]
[383767581,1757109259395,-400.0,0.00040821,10]
[383767582,1757109259405,-531.57,0.00040821,10]
[383767583,1757109259414,-428.34,0.00040821,10]
[383767584,1757109259424,-401.29,0.00040821,10]
[383767585,1757109259434,-720.58,0.00040821,10]
[383767586,1757109259443,-400.0,0.00040821,10]
[383767587,1757109259453,-400.0,0.00040821,10]
[383767588,1757109259462,-1987.61,0.00040821,120]
[383767589,1757109259471,-400.0,0.00040821,10]
[383767590,1757109259481,-400.0,0.00040821,10]
[383767591,1757109259490,-471.02,0.00040821,10]
[383767592,1757109259499,-2254.56,0.00040821,10]
[383767593,1757109259508,-786.84,0.00040821,10]
[383767594,1757109259518,-400.0,0.00040821,10]
[383767595,1757109259527,-1906.65,0.00040821,10]
[383767596,1757109259536,-3337.86,0.00040821,10]
[383767597,1757109259545,-404.67,0.00040821,10]
[383767598,1757109259555,-511.96,0.00040821,10]
[383767599,1757109259564,-911.18,0.00040821,10]
[383767600,1757109259573,-516.46,0.00040821,10]
[383767601,1757109259582,-488.47,0.00040821,10]
[383767602,1757109259719,-1977.28,0.00040821,10]
[383767603,1757109259729,-400.0,0.00040821,10]
[383767604,1757109259739,-457.95,0.00040821,10]
[383767605,1757109259749,-400.0,0.00040821,10]
[383767606,1757109259758,-527.02,0.00040821,10]
[383767607,1757109259769,-689.76,0.00040821,10]
[383767608,1757109259778,-697.63,0.00040821,10]
[383767609,1757109259788,-433.65,0.00040821,10]
[383767610,1757109259797,-419.06,0.00040821,10]
[383767611,1757109259807,-436.45,0.00040821,10]
[383767612,1757109259816,-6963.13,0.00040821,10]
[383767613,1757109259825,-400.0,0.00040821,10]
[383767614,1757109259835,-1232.95,0.00040821,10]
[383767615,1757109259844,-618.53,0.00040821,10]
[383767616,1757109259853,-400.0,0.00040821,10]
[383767617,1757109259863,-1178.96147,0.00040888,30]
[383767618,1757109259873,-567.68,0.00040987,2]
[383767619,1757109259882,-611.37,0.00040987,2]
[383767620,1757109259892,-358.88845127,0.00040999,120]
[383767621,1757109259902,-50000.0,0.00041,41]
[383767622,1757109259911,-4243.63116549,0.00041,30]
[383767623,1757109259921,-15635.88573174,0.00041,10]
[383767624,1757109259930,-379.68729737,0.00041,120]
[383767625,1757109259940,-28531.84804359,0.00041,10]
[383767626,1757109259949,-328.0,0.00041,21]
[383767627,1757109259959,-900.0,0.00041,42]
[383767628,1757109259968,-1000.0,0.00041,60]
[383767629,1757109259977,-575.50736134,0.00041,120]
[383767630,1757109259987,-155.0,0.00041,90]
[383767631,1757109259996,-6326.0,0.00041,120]
[383767632,1757109260009,-150.0,0.00041005,120]
[383767633,1757109260019,-380.0,0.0004104,2]
[383767634,1757109260028,-1178.96147,0.00041088,30]
[383767635,1757109260037,-339.30249,0.00041095,120]
[383767636,1757109260047,-634.468343,0.00041095,120]
[383767637,1757109260056,-400.0,0.00041095,120]
[383767638,1757109260065,-400.0,0.00041095,120]
[383767639,1757109260077,-366.43999189,0.00041095,120]
[383767640,1757109260086,-400.0,0.00041095,120]
[383767641,1757109260096,-417.8,0.00041095,120]
[383767642,1757109260105,-400.0,0.00041095,120]
[383767643,1757109260114,-400.0,0.00041095,120]
[383767644,1757109260124,-527.94705659,0.00041095,120]
[383767645,1757109260133,-198.94513496,0.00041095,120]
[383767646,1757109260142,-400.0,0.00041095,120]
[383767647,1757109260152,-944.57,0.00041095,120]
[383767648,1757109260161,-400.0,0.00041095,120]
[383767649,1757109260170,-300.0,0.00041095,120]
[383767650,1757109260180,-846.07,0.00041095,120]
[383767651,1757109260190,-400.0,0.00041095,120]
[383767652,1757109260200,-322.29,0.00041095,120]
[383767653,1757109260209,-564.87,0.00041095,120]
[383767654,1757109260220,-765.62,0.00041095,120]
[383767655,1757109260229,-400.0,0.00041095,120]
[383767656,1757109260239,-400.0,0.00041095,120]
[383767657,1757109260248,-433.33,0.00041095,120]
[383767658,1757109260258,-1155.55,0.00041095,120]
[383767659,1757109260268,-405.24,0.00041095,120]
[383767660,1757109260278,-678.29,0.00041095,120]
[383767661,1757109260288,-414.11,0.00041095,120]
[383767662,1757109260297,-413.3,0.00041095,120]
[383767663,1757109260307,-418.03,0.00041095,120]
[383767664,1757109260316,-346.48,0.00041095,120]
[383767665,1757109260326,-420.25,0.00041095,120]
[383767666,1757109260335,-437.75,0.00041095,120]
[383767667,1757109260345,-506.4,0.00041095,120]
[383767668,1757109260355,-437.87,0.00041095,120]
[383767669,1757109260364,-400.0,0.00041095,120]
[383767670,1757109260374,-451.2,0.00041095,120]
[383767671,1757109260384,-440.33544766,0.00041095,60]
[383767672,1757109260394,-507.92,0.00041095,120]
[383767673,1757109260404,-461.35,0.00041095,120]
[383767674,1757109260413,-458.84,0.00041095,120]
[383767675,1757109260423,-428.49,0.00041095,120]
[383767676,1757109260432,-1054.45,0.00041095,120]
[383767677,1757109260441,-409.45,0.00041095,120]
[383767678,1757109260451,-400.0,0.00041095,120]
[383767679,1757109260460,-542.29,0.00041095,120]
[383767680,1757109260470,-508.21,0.00041095,120]
[383767681,1757109260479,-400.0,0.00041095,120]
[383767682,1757109260489,-400.0,0.00041095,120]
[383767683,1757109260499,-493.63,0.00041095,120]
[383767684,1757109260508,-425.32,0.00041095,120]
[383767685,1757109260518,-518.21,0.00041095,120]
[383767686,1757109260527,-449.3,0.00041095,120]
[383767687,1757109260537,-510.04,0.00041095,120]
[383767688,1757109260547,-414.48,0.00041095,120]
[383767689,1757109260555,-153.113189,0.00041095,120]
[383767690,1757109260565,-970.87,0.00041095,120]
[383767691,1757109260574,-490.71,0.00041095,120]
[383767692,1757109260583,-436.72,0.00041095,120]
[383767693,1757109260592,-414.95,0.00041095,120]
[383767694,1757109260601,-447.82,0.00041095,120]
[383767695,1757109260611,-647.6,0.00041095,120]
[383767696,1757109260620,-425.6,0.00041095,120]
[383767697,1757109260630,-490.57,0.00041095,120]
[383767698,1757109260639,-641.44,0.00041095,120]
[383767699,1757109260648,-419.23,0.00041095,120]
[383767700,1757109260657,-403.59,0.00041095,120]
[383767701,1757109260667,-401.8,0.00041095,120]
[383767702,1757109260677,-406.84,0.00041095,120]
[383767703,1757109260686,-548.51,0.00041095,120]
[383767704,1757109260695,-452.54,0.00041095,120]
[383767705,1757109260705,-440.39,0.00041095,120]
[383767706,1757109260715,-679.14,0.00041095,120]
[383767707,1757109260724,-433.62,0.00041095,120]
[383767708,1757109260734,-400.0,0.00041095,120]
[383767709,1757109260744,-589.1,0.00041095,120]
[383767710,1757109260755,-551.08,0.00041095,120]
[383767711,1757109260764,-415.82,0.00041095,120]
[383767712,1757109260774,-576.99,0.00041095,120]
[383767713,1757109260784,-455.37,0.00041095,120]
[383767714,1757109260794,-410.32,0.00041095,120]
[383767715,1757109260804,-497.74,0.00041095,120]
[383767716,1757109260813,-498.14,0.00041095,120]
[383767717,1757109260823,-878.01,0.00041095,120]
[383767718,1757109260833,-1227.44,0.00041095,120]
[383767719,1757109260842,-400.0,0.00041095,120]
[383767720,1757109260851,-601.8,0.00041095,120]
[383767721,1757109260861,-404.89,0.00041095,120]
[383767722,1757109260871,-414.05,0.00041095,120]
[383767723,1757109260880,-562.13,0.00041095,120]
[383767724,1757109260890,-400.0,0.00041095,120]
[383767725,1757109260899,-400.0,0.00041095,60]
[383767726,1757109260908,-457.02,0.00041095,120]
[383767727,1757109260918,-519.36,0.00041095,120]
[383767728,1757109260928,-407.84538635,0.00041095,120]
[383767729,1757109260938,-400.0,0.00041095,120]
[383767730,1757109260948,-464.19,0.00041095,120]
[383767731,1757109260958,-509.57,0.00041095,120]
[383767732,1757109260967,-400.0,0.00041095,120]
[383767733,1757109260977,-400.0,0.00041095,120]
[383767734,1757109260986,-536.82,0.00041095,120]
[383767735,1757109260995,-263.45053924,0.00041095,120]
[383767736,1757109261007,-456.25,0.00041095,120]
[383767737,1757109261016,-400.0,0.00041095,120]
[383767738,1757109261026,-400.0,0.00041095,120]
[383767739,1757109261035,-1325.01,0.00041095,120]
[383767740,1757109261045,-662.17,0.00041095,120]
[383767741,1757109261055,-475.33,0.00041095,120]
[383767742,1757109261064,-342.02051631,0.00041095,120]
[383767743,1757109261073,-580.54,0.00041095,120]
[383767744,1757109261083,-468.08,0.00041095,120]
[383767745,1757109261093,-504.21,0.00041095,30]
[383767746,1757109261103,-470.77,0.00041095,120]
[383767747,1757109261112,-417.63,0.00041095,120]
[383767748,1757109261122,-175.55,0.00041095,120]
[383767749,1757109261131,-400.0,0.00041095,120]
[383767750,1757109261141,-406.01,0.00041095,120]
[383767751,1757109261151,-560.94,0.00041095,120]
[383767752,1757109261160,-671.39,0.00041095,120]
[383767753,1757109261170,-660.54,0.00041095,120]
[383767754,1757109261179,-161.00363199,0.00041095,120]
[383767755,1757109261189,-505.54,0.00041095,120]
[383767756,1757109261199,-400.0,0.00041095,2]
[383767757,1757109261208,-400.0,0.00041095,120]
[383767758,1757109261218,-493.62,0.00041095,120]
[383767759,1757109261227,-400.0,0.00041095,120]
[383767760,1757109261237,-556.02,0.00041095,120]
[383767761,1757109261246,-514.72,0.00041095,120]
[383767762,1757109261256,-456.07,0.00041095,120]
[383767763,1757109261266,-1553.38,0.00041095,120]
[383767764,1757109261276,-737.77,0.00041095,120]
[383767765,1757109261286,-400.0,0.00041095,120]
[383767766,1757109261296,-521.95,0.00041095,120]
[383767767,1757109261305,-418.68,0.00041095,120]
[383767768,1757109261315,-583.81,0.00041095,120]
[383767769,1757109261324,-498.62,0.00041095,120]
[383767770,1757109261334,-430.27,0.00041095,120]
[383767771,1757109261344,-579.68,0.00041095,120]
[383767772,1757109261354,-425.45,0.00041095,120]
[383767773,1757109261363,-691.22,0.00041095,120]
[383767774,1757109261374,-601.12,0.00041095,120]
[383767775,1757109261383,-400.0,0.00041095,120]
[383767776,1757109261393,-401.24,0.00041095,120]
[383767777,1757109261403,-400.0,0.00041095,120]
[383767778,1757109261412,-1060.4,0.00041095,120]
[383767779,1757109261421,-487.13,0.00041095,120]
[383767780,1757109261430,-565.1,0.00041095,120]
[383767781,1757109261440,-501.19164841,0.00041095,120]
[383767782,1757109261450,-607.93,0.00041095,120]
[383767783,1757109261460,-408.11,0.00041095,120]
[383767784,1757109261471,-599.17,0.00041095,120]
[383767785,1757109261481,-643.16,0.00041095,120]
[383767786,1757109261491,-400.0,0.00041095,120]
[383767787,1757109261501,-567.22,0.00041095,120]
[383767788,1757109261510,-376.08,0.00041095,120]
[383767789,1757109261520,-400.0,0.00041095,120]
[383767790,1757109261529,-587.89,0.00041095,120]
[383767791,1757109261539,-649.4,0.00041095,120]
[383767792,1757109261548,-444.03,0.00041095,120]
[383767793,1757109261558,-540.45,0.00041095,120]
[383767794,1757109261568,-521.91,0.00041095,120]
[383767795,1757109261577,-577.54,0.00041095,120]
[383767796,1757109261587,-455.87,0.00041095,120]
[383767797,1757109261596,-606.17,0.00041095,120]
[383767798,1757109261606,-400.0,0.00041095,120]
[383767799,1757109261615,-400.0,0.00041095,120]
[383767800,1757109261625,-552.86,0.00041095,120]
[383767801,1757109261634,-738.19,0.00041095,120]
[383767802,1757109261644,-400.0,0.00041095,120]
[383767803,1757109261654,-400.0,0.00041095,120]
[383767804,1757109261663,-485.13,0.00041095,120]
[383767805,1757109261672,-497.92,0.00041095,120]
[383767806,1757109261681,-534.68,0.00041095,120]
[383767807,1757109261691,-434.21,0.00041095,120]
[383767808,1757109261700,-400.0,0.00041095,120]
[383767809,1757109261709,-327.14158222,0.00041095,120]
[383767810,1757109261719,-409.64,0.00041095,120]
[383767811,1757109261729,-697.19,0.00041095,120]
[383767812,1757109261739,-588.33,0.00041095,120]
[383767813,1757109261748,-467.87,0.00041095,120]
[383767814,1757109261757,-400.0,0.00041095,120]